[Event "Torneo Nuevo Centro. Jornada 10"]
[Site "Chess.com"]
[Date "2020.08.21"]
[Round "8"]
[White "Bendayán Claros, Aaron"]
[Black "Bercaru, Vlad Ionut"]
[Result "1-0"]
[WhiteElo "1982"]
[BlackElo "1748"]
[TimeControl "180+2"]
[EndTime "12:01:30 PDT"]
[Termination "Victoria de Cuajada_Zero por tiempo"]

1. d4 {[%clk 0:03:01.9]} 1... Nf6 {[%clk 0:02:59.2]} 2. Nf3 {[%clk 0:03:02.3]}
2... g6 {[%clk 0:02:59.3]} 3. g3 {[%clk 0:03:02.5]} 3... Bg7 {[%clk 0:03:00.5]}
4. Bg2 {[%clk 0:03:03.7]} 4... O-O {[%clk 0:03:01.9]} 5. O-O {[%clk 0:03:04.3]}
5... d6 {[%clk 0:03:03.3]} 6. c3 {[%clk 0:02:56.5]} 6... Nc6 {[%clk 0:03:03.1]}
7. Re1 {[%clk 0:02:55]} 7... a6 {[%clk 0:03:02.1]} 8. e4 {[%clk 0:02:55.7]} 8...
e5 {[%clk 0:03:01.1]} 9. d5 {[%clk 0:02:56.5]} 9... Ne7 {[%clk 0:02:57.9]} 10.
c4 {[%clk 0:02:56.9]} 10... Ne8 {[%clk 0:02:57.4]} 11. Nc3 {[%clk 0:02:57]}
11... f5 {[%clk 0:02:57.4]} 12. Ng5 {[%clk 0:02:57.9]} 12... h6 {[%clk
0:02:51.5]} 13. Ne6 {[%clk 0:02:58.2]} 13... Bxe6 {[%clk 0:02:52.3]} 14. dxe6
{[%clk 0:02:59.6]} 14... Qc8 {[%clk 0:02:47.6]} 15. Nd5 {[%clk 0:02:56.9]} 15...
Qxe6 {[%clk 0:02:34.3]} 16. Nxe7+ {[%clk 0:02:53.8]} 16... Qxe7 {[%clk
0:02:36.2]} 17. exf5 {[%clk 0:02:53.7]} 17... gxf5 {[%clk 0:02:10.7]} 18. Qd5+
{[%clk 0:02:48.6]} 18... Kh8 {[%clk 0:01:59.8]} 19. Qxb7 {[%clk 0:02:46.8]}
19... Nf6 {[%clk 0:01:54.8]} 20. Bd2 {[%clk 0:02:40.3]} 20... Rab8 {[%clk
0:01:52.3]} 21. Qxa6 {[%clk 0:02:38.2]} 21... Rxb2 {[%clk 0:01:51.3]} 22. Bc3
{[%clk 0:02:36.1]} 22... Rb6 {[%clk 0:01:45.3]} 23. Qa3 {[%clk 0:02:28.5]} 23...
Nd7 {[%clk 0:01:43.2]} 24. Bb4 {[%clk 0:02:13.8]} 24... e4 {[%clk 0:01:31.9]}
25. Rac1 {[%clk 0:02:06.7]} 25... Rfb8 {[%clk 0:01:28.1]} 26. Bc3 {[%clk
0:02:07.2]} 26... Nc5 {[%clk 0:01:20.6]} 27. f3 {[%clk 0:01:52]} 27... Nd3
{[%clk 0:01:16.1]} 28. fxe4 {[%clk 0:01:50]} 28... Nxc1 {[%clk 0:01:09.7]} 29.
Qxc1 {[%clk 0:01:51.6]} 29... Bxc3 {[%clk 0:01:01.3]} 30. Qxc3+ {[%clk
0:01:50.2]} 30... Qg7 {[%clk 0:01:02.6]} 31. Qd3 {[%clk 0:01:23.6]} 31... fxe4
{[%clk 0:00:52.7]} 32. Bxe4 {[%clk 0:01:23.2]} 32... c5 {[%clk 0:00:49.8]} 33.
a4 {[%clk 0:01:02.7]} 33... Qd4+ {[%clk 0:00:44.8]} 34. Qxd4+ {[%clk 0:01:03.4]}
34... cxd4 {[%clk 0:00:46.7]} 35. Rd1 {[%clk 0:00:55.8]} 35... Ra6 {[%clk
0:00:45]} 36. Rxd4 {[%clk 0:00:52]} 36... Rxa4 {[%clk 0:00:42.2]} 37. Kg2 {[%clk
0:00:52.8]} 37... Ra6 {[%clk 0:00:38.3]} 38. Bd5 {[%clk 0:00:50.2]} 38... Rb2+
{[%clk 0:00:37.4]} 39. Kh3 {[%clk 0:00:49.7]} 39... Raa2 {[%clk 0:00:33.3]} 40.
Re4 {[%clk 0:00:43.8]} 40... Rxh2+ {[%clk 0:00:31.8]} 41. Kg4 {[%clk 0:00:44.8]}
41... h5+ {[%clk 0:00:28.5]} 42. Kg5 {[%clk 0:00:44.1]} 42... Ra5 {[%clk
0:00:23]} 43. Kh6 {[%clk 0:00:43.4]} 43... Rxd5 {[%clk 0:00:10.7]} 44. cxd5
{[%clk 0:00:45]} 44... Kg8 {[%clk 0:00:11.3]} 45. Kg6 {[%clk 0:00:23.2]} 45...
Kf8 {[%clk 0:00:10.9]} 46. Re3 {[%clk 0:00:13.6]} 46... h4 {[%clk 0:00:09.2]}
47. g4 {[%clk 0:00:13.7]} 47... Rg2 {[%clk 0:00:09.4]} 48. g5 {[%clk 0:00:14.1]}
48... Rg4 {[%clk 0:00:08.1]} 49. Re6 {[%clk 0:00:08.1]} 49... h3 {[%clk
0:00:05]} 50. Rxd6 {[%clk 0:00:08.9]} 50... h2 {[%clk 0:00:05.4]} 51. Rf6+
{[%clk 0:00:09.5]} 51... Ke7 {[%clk 0:00:05.7]} 52. Rf7+ {[%clk 0:00:09.1]}
52... Kd6 {[%clk 0:00:06.5]} 53. Rh7 {[%clk 0:00:09.8]} 53... Rg2 {[%clk
0:00:06]} 54. Kf6 {[%clk 0:00:10]} 54... Kxd5 {[%clk 0:00:06.5]} 55. g6 {[%clk
0:00:10.9]} 55... Rf2+ {[%clk 0:00:07.3]} 56. Kg7 {[%clk 0:00:08.9]} 56... Ke6
{[%clk 0:00:07]} 57. Kg8 {[%clk 0:00:06.6]} 57... Rg2 {[%clk 0:00:05]} 58. g7
{[%clk 0:00:06.9]} 58... Ke7 {[%clk 0:00:05.6]} 59. Rh3 {[%clk 0:00:07]} 59...
Rf2 {[%clk 0:00:02.4]} 60. Kh8 {[%clk 0:00:06.6]} 1

[Event "Torneo Nuevo Centro. Jornada 10"]
[Site "Chess.com"]
[Date "2020.08.21"]
[Round "9"]
[White "Birnoveanu, Petru"]
[Black "Ursariu, Nikolas Victor"]
[Result "1-0"]
[WhiteElo "1718"]
[BlackElo "1166"]
[TimeControl "180+2"]
[EndTime "12:04:12 PDT"]
[Termination "Victoria de piculet por jaque mate"]

1. e4 {[%clk 0:03:01.9]} 1... e5 {[%clk 0:03:00.7]} 2. Bc4 {[%clk 0:03:01.8]}
2... Bc5 {[%clk 0:03:00.6]} 3. Nf3 {[%clk 0:03:01.6]} 3... Nc6 {[%clk
0:02:59.6]} 4. O-O {[%clk 0:03:02.1]} 4... Nf6 {[%clk 0:02:57.3]} 5. d4 {[%clk
0:03:02.3]} 5... exd4 {[%clk 0:02:54.4]} 6. e5 {[%clk 0:03:01.8]} 6... Ng8
{[%clk 0:02:46.7]} 7. Nbd2 {[%clk 0:02:58]} 7... Nge7 {[%clk 0:02:43.7]} 8. Nb3
{[%clk 0:02:57.4]} 8... Bb6 {[%clk 0:02:29.4]} 9. Ng5 {[%clk 0:02:48.7]} 9...
O-O {[%clk 0:02:26.9]} 10. Qh5 {[%clk 0:02:46.7]} 10... h6 {[%clk 0:02:22]} 11.
Nxf7 {[%clk 0:02:45.2]} 11... Qe8 {[%clk 0:02:16.9]} 12. Nd6+ {[%clk 0:02:41.2]}
12... Kh7 {[%clk 0:02:10.4]} 13. Nxe8 {[%clk 0:02:39.7]} 13... g6 {[%clk
0:02:03.7]} 14. Qxh6# {[%clk 0:02:35.8]} 1

[Event "Torneo Nuevo Centro. Jornada 10"]
[Site "Chess.com"]
[Date "2020.08.21"]
[Round "9"]
[White "Serarols Mabras, Bernat"]
[Black "Macias Pino, Diego"]
[Result "1/2-1/2"]
[WhiteElo "2472"]
[BlackElo "2269"]
[TimeControl "180+2"]
[EndTime "12:04:22 PDT"]
[Termination "Partida en tablas por mutuo acuerdo"]

1. d4 {[%clk 0:03:01.9]} 1... d5 {[%clk 0:03:00.5]} 2. c4 {[%clk 0:03:03.2]}
2... dxc4 {[%clk 0:03:02.4]} 3. e4 {[%clk 0:03:04.2]} 3... b5 {[%clk 0:03:01.7]}
4. a4 {[%clk 0:03:05]} 4... c6 {[%clk 0:03:03.2]} 5. axb5 {[%clk 0:03:06.4]}
5... cxb5 {[%clk 0:03:05.1]} 6. Nc3 {[%clk 0:03:08]} 6... a6 {[%clk 0:03:05.7]}
7. Nxb5 {[%clk 0:03:09.5]} 7... axb5 {[%clk 0:03:07.6]} 8. Rxa8 {[%clk
0:03:09.6]} 8... Bb7 {[%clk 0:03:08.4]} 9. Ra1 {[%clk 0:03:11.2]} 9... e6 {[%clk
0:03:09.3]} 10. Ne2 {[%clk 0:03:12.6]} 10... Bxe4 {[%clk 0:03:08.8]} 11. Nc3
{[%clk 0:03:13.8]} 11... Bc6 {[%clk 0:03:09.2]} 12. Be2 {[%clk 0:03:15.3]} 12...
Nf6 {[%clk 0:03:09.2]} 13. O-O {[%clk 0:02:59.6]} 13... Be7 {[%clk 0:03:09.2]}
14. Be3 {[%clk 0:02:57.9]} 14... O-O {[%clk 0:03:04.1]} 15. Bf3 {[%clk
0:02:58.8]} 15... Nd5 {[%clk 0:02:31.2]} 16. Nxd5 {[%clk 0:02:58.2]} 16... Bxd5
{[%clk 0:02:32.9]} 17. Bxd5 {[%clk 0:02:58.1]} 17... Qxd5 {[%clk 0:02:34.8]} 18.
Qf3 {[%clk 0:02:51.8]} 18... Qxf3 {[%clk 0:02:27.7]} 19. gxf3 {[%clk 0:02:52.8]}
19... Nc6 {[%clk 0:02:16.5]} 20. Ra6 {[%clk 0:02:53.5]} 1/2-1

[Event "Torneo Nuevo Centro. Jornada 10"]
[Site "Chess.com"]
[Date "2020.08.21"]
[Round "9"]
[White "Gil López, Alejandro"]
[Black "Sos Andreu, Eric"]
[Result "0-1"]
[WhiteElo "2209"]
[BlackElo "2519"]
[TimeControl "180+2"]
[EndTime "12:06:00 PDT"]
[Termination "Victoria de ericovski por abandono"]

1. e4 {[%clk 0:03:01.9]} 1... c6 {[%clk 0:02:59.8]} 2. d4 {[%clk 0:03:01.7]}
2... d5 {[%clk 0:02:58.2]} 3. Nc3 {[%clk 0:03:03.2]} 3... dxe4 {[%clk
0:02:58.6]} 4. Nxe4 {[%clk 0:03:04.4]} 4... Nf6 {[%clk 0:02:58.4]} 5. Ng3 {[%clk
0:03:05.3]} 5... h5 {[%clk 0:02:56.3]} 6. h4 {[%clk 0:03:05.2]} 6... Bg4 {[%clk
0:02:53.7]} 7. Be2 {[%clk 0:03:06.2]} 7... Qd5 {[%clk 0:02:51]} 8. Bf3 {[%clk
0:03:01.2]} 8... Bxf3 {[%clk 0:02:51.7]} 9. Nxf3 {[%clk 0:03:03.1]} 9... Nbd7
{[%clk 0:02:51.1]} 10. c3 {[%clk 0:03:03.8]} 10... e6 {[%clk 0:02:52.1]} 11. Qb3
{[%clk 0:02:58.4]} 11... Nb6 {[%clk 0:02:47.6]} 12. Qxd5 {[%clk 0:02:54.2]}
12... cxd5 {[%clk 0:02:49.5]} 13. Bf4 {[%clk 0:02:51.5]} 13... Rc8 {[%clk
0:02:46.5]} 14. O-O {[%clk 0:02:49]} 14... Be7 {[%clk 0:02:44.4]} 15. Rfe1
{[%clk 0:02:45]} 15... g6 {[%clk 0:02:42.4]} 16. Re2 {[%clk 0:02:38.7]} 16...
O-O {[%clk 0:02:42.6]} 17. Ne5 {[%clk 0:02:30.8]} 17... Nfd7 {[%clk 0:02:40.9]}
18. Nxd7 {[%clk 0:02:30.2]} 18... Nxd7 {[%clk 0:02:42.3]} 19. Bg5 {[%clk
0:02:30.9]} 19... Bxg5 {[%clk 0:02:42.4]} 20. hxg5 {[%clk 0:02:31.7]} 20... b5
{[%clk 0:02:42]} 21. a3 {[%clk 0:02:31.4]} 21... a5 {[%clk 0:02:42.9]} 22. Re3
{[%clk 0:02:27.2]} 22... Rb8 {[%clk 0:02:43.4]} 23. b4 {[%clk 0:02:21.5]} 23...
Ra8 {[%clk 0:02:42.2]} 24. Rb1 {[%clk 0:02:17.4]} 24... Nb6 {[%clk 0:02:37.5]}
25. bxa5 {[%clk 0:01:53.8]} 25... Rxa5 {[%clk 0:02:39.4]} 26. Rb3 {[%clk
0:01:48.5]} 26... Rfa8 {[%clk 0:02:38.5]} 27. Ne2 {[%clk 0:01:43.3]} 27... Nc4
{[%clk 0:02:39.5]} 28. Rd3 {[%clk 0:01:44.1]} 28... Nxa3 {[%clk 0:02:39.4]} 29.
Rd2 {[%clk 0:01:43.3]} 29... Nc4 {[%clk 0:02:40.2]} 30. Rd1 {[%clk 0:01:43.5]}
30... Ra1 {[%clk 0:02:41]} 31. Rdb1 {[%clk 0:01:41.2]} 31... Nd2 {[%clk
0:02:39.2]} 0

[Event "Torneo Nuevo Centro. Jornada 10"]
[Site "Chess.com"]
[Date "2020.08.21"]
[Round "9"]
[White "Grigorev, Artur "]
[Black "Vicent Lázaro, Elena"]
[Result "1-0"]
[WhiteElo "922"]
[BlackElo "671"]
[TimeControl "180+2"]
[EndTime "12:06:21 PDT"]
[Termination "Victoria de Arturiog por jaque mate"]

1. e4 {[%clk 0:03:01.9]} 1... e6 {[%clk 0:02:59.9]} 2. d4 {[%clk 0:03:01.4]}
2... c5 {[%clk 0:02:51.5]} 3. d5 {[%clk 0:02:54.8]} 3... exd5 {[%clk 0:02:49.7]}
4. exd5 {[%clk 0:02:55.9]} 4... c4 {[%clk 0:02:44.1]} 5. Qe2+ {[%clk 0:02:52.3]}
5... Be7 {[%clk 0:02:40.1]} 6. d6 {[%clk 0:02:49.3]} 6... Nf6 {[%clk 0:02:35.6]}
7. dxe7 {[%clk 0:02:38.5]} 7... Qxe7 {[%clk 0:02:33.8]} 8. Qxe7+ {[%clk
0:02:37.9]} 8... Kxe7 {[%clk 0:02:33.6]} 9. Bxc4 {[%clk 0:02:36.7]} 9... Nc6
{[%clk 0:02:30.3]} 10. Nf3 {[%clk 0:02:33.3]} 10... Na5 {[%clk 0:02:25.9]} 11.
Bb3 {[%clk 0:02:27.1]} 11... Nxb3 {[%clk 0:02:25.6]} 12. axb3 {[%clk 0:02:26.1]}
12... b5 {[%clk 0:02:17.7]} 13. Nc3 {[%clk 0:02:24.2]} 13... b4 {[%clk
0:02:13.3]} 14. Nb5 {[%clk 0:02:16.6]} 14... Ba6 {[%clk 0:02:11.7]} 15. Nc7
{[%clk 0:02:14.4]} 15... Rac8 {[%clk 0:02:08.2]} 16. Nxa6 {[%clk 0:02:11.5]}
16... Rxc2 {[%clk 0:02:05.4]} 17. O-O {[%clk 0:02:04.9]} 17... Rg8 {[%clk
0:01:58.5]} 18. Re1+ {[%clk 0:02:04.6]} 18... Re2 {[%clk 0:01:37.4]} 19. Rxe2+
{[%clk 0:01:56.5]} 19... Kf8 {[%clk 0:01:37.2]} 20. Nxb4 {[%clk 0:01:44.2]}
20... Nh5 {[%clk 0:01:39.1]} 21. Rxa7 {[%clk 0:01:43.4]} 21... Nf4 {[%clk
0:01:29]} 22. Ra8# {[%clk 0:01:42.3]} 1

[Event "Torneo Nuevo Centro. Jornada 10"]
[Site "Chess.com"]
[Date "2020.08.21"]
[Round "9"]
[White "Serrano Requena, Guillem"]
[Black "Aguado, Pablo Luis"]
[Result "0-1"]
[WhiteElo "1316"]
[BlackElo "1930"]
[TimeControl "180+2"]
[EndTime "12:07:30 PDT"]
[Termination "Victoria de PLAD_2006 por jaque mate"]

1. d4 {[%clk 0:03:01.9]} 1... d5 {[%clk 0:02:55.5]} 2. Nf3 {[%clk 0:03:01.7]}
2... Nf6 {[%clk 0:02:55.6]} 3. Bg5 {[%clk 0:03:02.2]} 3... Nbd7 {[%clk
0:02:55.3]} 4. c4 {[%clk 0:03:01.5]} 4... e6 {[%clk 0:02:56.3]} 5. cxd5 {[%clk
0:03:02.2]} 5... exd5 {[%clk 0:02:57.7]} 6. Nc3 {[%clk 0:03:03]} 6... Bb4 {[%clk
0:02:58.7]} 7. a3 {[%clk 0:03:02.4]} 7... Ba5 {[%clk 0:02:58.9]} 8. b4 {[%clk
0:03:01.9]} 8... Bb6 {[%clk 0:02:59.9]} 9. Nxd5 {[%clk 0:03:02.2]} 9... O-O
{[%clk 0:03:01]} 10. Nxb6 {[%clk 0:02:51.1]} 10... axb6 {[%clk 0:03:00.4]} 11.
e3 {[%clk 0:02:49]} 11... c6 {[%clk 0:03:00.7]} 12. Bd3 {[%clk 0:02:48.5]} 12...
b5 {[%clk 0:03:01.5]} 13. O-O {[%clk 0:02:48.6]} 13... Nb6 {[%clk 0:03:02.7]}
14. Qc2 {[%clk 0:02:48.1]} 14... h6 {[%clk 0:03:03.8]} 15. Bh4 {[%clk
0:02:48.1]} 15... Nbd5 {[%clk 0:03:04.8]} 16. Nd2 {[%clk 0:02:35.9]} 16... g5
{[%clk 0:03:00.9]} 17. Bg3 {[%clk 0:02:36.3]} 17... Qe7 {[%clk 0:02:54.1]} 18.
Ne4 {[%clk 0:02:33.3]} 18... Nxe4 {[%clk 0:02:54.4]} 19. Bxe4 {[%clk 0:02:34]}
19... Nb6 {[%clk 0:02:50.1]} 20. Be5 {[%clk 0:02:24.1]} 20... f5 {[%clk
0:02:50.1]} 21. Bd3 {[%clk 0:02:21.8]} 21... Be6 {[%clk 0:02:49.6]} 22. f3
{[%clk 0:02:14.8]} 22... Bc4 {[%clk 0:02:48.7]} 23. e4 {[%clk 0:02:09.6]} 23...
f4 {[%clk 0:02:45.1]} 24. g3 {[%clk 0:01:50.2]} 24... Rad8 {[%clk 0:02:39.8]}
25. gxf4 {[%clk 0:01:48.5]} 25... gxf4 {[%clk 0:02:36.9]} 26. Qg2+ {[%clk
0:01:48.4]} 26... Kh7 {[%clk 0:02:36.9]} 27. Qh3 {[%clk 0:01:45]} 27... Bxd3
{[%clk 0:02:34.4]} 28. Rf2 {[%clk 0:01:41.3]} 28... Rg8+ {[%clk 0:02:21.5]} 29.
Kh1 {[%clk 0:01:41.4]} 29... Rdf8 {[%clk 0:02:18.9]} 30. Rg2 {[%clk 0:01:40.2]}
30... Rxg2 {[%clk 0:02:18.4]} 31. Kxg2 {[%clk 0:01:38.9]} 31... Nd7 {[%clk
0:02:17.8]} 32. Rg1 {[%clk 0:01:34.1]} 32... Nxe5 {[%clk 0:02:17.6]} 33. dxe5
{[%clk 0:01:33.5]} 33... Qxe5 {[%clk 0:02:17]} 34. Kh1 {[%clk 0:01:34.8]} 34...
Rf7 {[%clk 0:02:11.8]} 35. Rd1 {[%clk 0:01:11.3]} 35... Be2 {[%clk 0:02:03.9]}
36. Rd8 {[%clk 0:01:11]} 36... Qa1+ {[%clk 0:01:54.9]} 37. Kg2 {[%clk 0:01:10]}
37... Qf1# {[%clk 0:01:55.9]} 0

[Event "Torneo Nuevo Centro. Jornada 10"]
[Site "Chess.com"]
[Date "2020.08.21"]
[Round "9"]
[White "Iravedra Ainkov, Francisco"]
[Black "Orts Tomás, Marc"]
[Result "0-1"]
[WhiteElo "1820"]
[BlackElo "1869"]
[TimeControl "180+2"]
[EndTime "12:07:49 PDT"]
[Termination "Victoria de Rock-Bishop29 por abandono"]

1. e4 {[%clk 0:03:01.9]} 1... c5 {[%clk 0:03:00.8]} 2. c3 {[%clk 0:03:02.2]}
2... Nf6 {[%clk 0:03:00.8]} 3. e5 {[%clk 0:03:01.6]} 3... Nd5 {[%clk 0:03:01.7]}
4. Nf3 {[%clk 0:03:02.7]} 4... e6 {[%clk 0:02:58.7]} 5. Bc4 {[%clk 0:02:59.2]}
5... d6 {[%clk 0:02:58.2]} 6. d4 {[%clk 0:02:58.7]} 6... cxd4 {[%clk 0:02:59.1]}
7. cxd4 {[%clk 0:03:00.6]} 7... Nc6 {[%clk 0:02:54.4]} 8. Bxd5 {[%clk
0:02:50.9]} 8... exd5 {[%clk 0:02:53.5]} 9. Nc3 {[%clk 0:02:52.3]} 9... dxe5
{[%clk 0:02:51.6]} 10. dxe5 {[%clk 0:02:52.3]} 10... Bb4 {[%clk 0:02:50.2]} 11.
Bd2 {[%clk 0:02:48.1]} 11... Be6 {[%clk 0:02:50.4]} 12. a3 {[%clk 0:02:48.6]}
12... Be7 {[%clk 0:02:48.3]} 13. Be3 {[%clk 0:02:48.6]} 13... O-O {[%clk
0:02:37.4]} 14. Bd4 {[%clk 0:02:49.7]} 14... Nxd4 {[%clk 0:02:32.4]} 15. Nxd4
{[%clk 0:02:51.6]} 15... Qb6 {[%clk 0:02:33.1]} 16. Nxe6 {[%clk 0:02:46.1]}
16... fxe6 {[%clk 0:02:33.9]} 17. Qc2 {[%clk 0:02:44.6]} 17... Rac8 {[%clk
0:02:27.3]} 18. Qd2 {[%clk 0:02:34.7]} 18... Rf5 {[%clk 0:01:57.8]} 19. f4
{[%clk 0:02:23.1]} 19... Re8 {[%clk 0:01:46.4]} 20. g3 {[%clk 0:02:13.9]} 20...
Rc8 {[%clk 0:01:44]} 21. Qf2 {[%clk 0:02:13.1]} 21... Bc5 {[%clk 0:01:40.2]} 22.
Qe2 {[%clk 0:02:05.7]} 22... Bd4 {[%clk 0:01:27.7]} 23. Rc1 {[%clk 0:01:35]}
23... Rff8 {[%clk 0:00:51.6]} 24. Qd2 {[%clk 0:01:28.8]} 24... Be3 {[%clk
0:00:49.9]} 25. Qd1 {[%clk 0:01:04.9]} 25... Bxc1 {[%clk 0:00:50.5]} 26. Qxc1
{[%clk 0:01:06.8]} 26... d4 {[%clk 0:00:52]} 0

[Event "Torneo Nuevo Centro. Jornada 10"]
[Site "Chess.com"]
[Date "2020.08.21"]
[Round "9"]
[White "Fente Fernandez, Jose Ignacio"]
[Black "Pardo Ruiz, Carlos"]
[Result "0-1"]
[WhiteElo "1508"]
[BlackElo "1690"]
[TimeControl "180+2"]
[EndTime "12:08:11 PDT"]
[Termination "Victoria de Carlitoscarlsen por abandono"]

1. e4 {[%clk 0:03:01.9]} 1... Nf6 {[%clk 0:03:00.2]} 2. e5 {[%clk 0:03:02.1]}
2... Nd5 {[%clk 0:02:59.5]} 3. c4 {[%clk 0:03:03.5]} 3... Nb6 {[%clk 0:02:59.8]}
4. d4 {[%clk 0:03:04.2]} 4... d6 {[%clk 0:02:59]} 5. Nc3 {[%clk 0:03:04.8]} 5...
dxe5 {[%clk 0:02:57.6]} 6. dxe5 {[%clk 0:02:58.6]} 6... Qxd1+ {[%clk 0:02:57.8]}
7. Nxd1 {[%clk 0:03:00.5]} 7... Nc6 {[%clk 0:02:56.8]} 8. Nf3 {[%clk 0:02:54.5]}
8... Bg4 {[%clk 0:02:56.5]} 9. c5 {[%clk 0:02:39]} 9... Nd7 {[%clk 0:02:49.1]}
10. e6 {[%clk 0:02:36.7]} 10... Bxe6 {[%clk 0:02:48.7]} 11. Be3 {[%clk
0:02:29.5]} 11... O-O-O {[%clk 0:02:48]} 12. Bb5 {[%clk 0:02:28.7]} 12... Nce5
{[%clk 0:02:46]} 13. Nd4 {[%clk 0:02:20.5]} 13... Bd5 {[%clk 0:02:40.7]} 14. f3
{[%clk 0:02:02.3]} 14... c6 {[%clk 0:02:30]} 15. Nc3 {[%clk 0:01:49.6]} 15...
cxb5 {[%clk 0:02:26.5]} 16. Nxd5 {[%clk 0:01:50.3]} 16... Nxc5 {[%clk
0:02:27.1]} 17. Nb4 {[%clk 0:01:14.9]} 17... Ned3+ {[%clk 0:02:20]} 18. Nxd3
{[%clk 0:01:08]} 18... Nxd3+ {[%clk 0:02:21.9]} 19. Kd2 {[%clk 0:01:09.2]} 19...
Nxb2 {[%clk 0:02:14.9]} 20. Rab1 {[%clk 0:01:08.5]} 20... Na4 {[%clk 0:02:13.1]}
21. Rhc1+ {[%clk 0:00:59]} 21... Kb8 {[%clk 0:02:13.3]} 22. Ke2 {[%clk
0:00:52.9]} 22... a6 {[%clk 0:02:10.9]} 23. Bf4+ {[%clk 0:00:49.4]} 23... Ka8
{[%clk 0:02:07.9]} 24. Nxb5 {[%clk 0:00:22]} 24... axb5 {[%clk 0:02:03.1]} 25.
Rxb5 {[%clk 0:00:23.9]} 25... b6 {[%clk 0:02:00.7]} 26. Rb4 {[%clk 0:00:14]}
26... Nc5 {[%clk 0:01:55.7]} 27. Rxb6 {[%clk 0:00:13.2]} 27... Nd3 {[%clk
0:01:51.6]} 28. Ra6+ {[%clk 0:00:09.2]} 28... Kb7 {[%clk 0:01:51]} 29. Ra3
{[%clk 0:00:06.5]} 29... Nxc1+ {[%clk 0:01:51]} 30. Bxc1 {[%clk 0:00:06.8]}
30... e5 {[%clk 0:01:51.3]} 31. Be3 {[%clk 0:00:06.4]} 31... Bxa3 {[%clk
0:01:51.4]} 0

[Event "Torneo Nuevo Centro. Jornada 10"]
[Site "Chess.com"]
[Date "2020.08.21"]
[Round "9"]
[White "Beneyto de Ramon, Guillermo"]
[Black "Carbonell Bofill, Carlos Eloy"]
[Result "0-1"]
[WhiteElo "1657"]
[BlackElo "1905"]
[TimeControl "180+2"]
[EndTime "12:08:18 PDT"]
[Termination "Victoria de MFCARLOS por jaque mate"]

1. c4 {[%clk 0:03:01.5]} 1... e5 {[%clk 0:02:56.3]} 2. Nc3 {[%clk 0:03:01.6]}
2... Nc6 {[%clk 0:02:55.5]} 3. g3 {[%clk 0:03:02.1]} 3... f5 {[%clk 0:02:55.7]}
4. d3 {[%clk 0:03:02.1]} 4... Nf6 {[%clk 0:02:56.8]} 5. Bg2 {[%clk 0:03:02.5]}
5... g6 {[%clk 0:02:57.7]} 6. Bg5 {[%clk 0:03:01]} 6... Bg7 {[%clk 0:02:58.7]}
7. Nf3 {[%clk 0:03:01.1]} 7... O-O {[%clk 0:02:59.3]} 8. O-O {[%clk 0:03:00]}
8... h6 {[%clk 0:02:59.7]} 9. Bxf6 {[%clk 0:03:00.4]} 9... Bxf6 {[%clk
0:03:01.5]} 10. Nd2 {[%clk 0:03:01.7]} 10... f4 {[%clk 0:02:59.2]} 11. Nd5
{[%clk 0:02:56]} 11... Bg7 {[%clk 0:02:52.7]} 12. Ne4 {[%clk 0:02:56.2]} 12...
Nd4 {[%clk 0:02:48.2]} 13. e3 {[%clk 0:02:40.3]} 13... f3 {[%clk 0:02:38.1]} 14.
Bh1 {[%clk 0:02:35.2]} 14... Ne2+ {[%clk 0:02:37.8]} 15. Qxe2 {[%clk 0:02:34.1]}
15... fxe2 {[%clk 0:02:39.7]} 16. Rfe1 {[%clk 0:02:35.4]} 16... c6 {[%clk
0:02:40.2]} 17. Ndc3 {[%clk 0:02:36]} 17... d5 {[%clk 0:02:38.5]} 18. cxd5
{[%clk 0:02:35.7]} 18... cxd5 {[%clk 0:02:40.4]} 19. Nxd5 {[%clk 0:02:28.9]}
19... Bg4 {[%clk 0:02:32.8]} 20. Ndc3 {[%clk 0:02:22.5]} 20... Qxd3 {[%clk
0:02:25.9]} 21. Rac1 {[%clk 0:02:15.2]} 21... Rac8 {[%clk 0:02:12.4]} 22. Bg2
{[%clk 0:01:42.3]} 22... g5 {[%clk 0:02:11.7]} 23. h3 {[%clk 0:01:39.4]} 23...
Bf3 {[%clk 0:02:11.2]} 24. Bxf3 {[%clk 0:01:24.1]} 24... Rxf3 {[%clk 0:02:12.7]}
25. Rxe2 {[%clk 0:01:24.9]} 25... Qxe4 {[%clk 0:01:46.5]} 26. Nxe4 {[%clk
0:01:20.3]} 26... Rxc1+ {[%clk 0:01:48.3]} 27. Kg2 {[%clk 0:01:21.3]} 27... Rf7
{[%clk 0:01:43.8]} 28. Rd2 {[%clk 0:01:17.2]} 28... Bf8 {[%clk 0:01:34.5]} 29.
Nc3 {[%clk 0:01:06.6]} 29... Bb4 {[%clk 0:01:31.7]} 30. Rd8+ {[%clk 0:01:03.5]}
30... Rf8 {[%clk 0:01:32.1]} 31. Rd3 {[%clk 0:00:57.2]} 31... Bxc3 {[%clk
0:01:32.4]} 32. bxc3 {[%clk 0:00:57.4]} 32... Rc2 {[%clk 0:01:32.2]} 33. Rd5
{[%clk 0:00:53.1]} 33... Rfxf2+ {[%clk 0:01:32.7]} 34. Kg1 {[%clk 0:00:54.9]}
34... Rfd2 {[%clk 0:01:33.5]} 35. Rxe5 {[%clk 0:00:55.4]} 35... Rd1# {[%clk
0:01:34.2]} 0

[Event "Torneo Nuevo Centro. Jornada 10"]
[Site "Chess.com"]
[Date "2020.08.21"]
[Round "9"]
[White "Pardo Ruiz, Beatriz"]
[Black "Sanchis Bon, Sergi"]
[Result "1-0"]
[WhiteElo "1281"]
[BlackElo "998"]
[TimeControl "180+2"]
[EndTime "12:08:25 PDT"]
[Termination "Victoria de trizPR6 por jaque mate"]

1. e4 {[%clk 0:02:56]} 1... Nf6 {[%clk 0:02:57]} 2. Nf3 {[%clk 0:02:56.2]} 2...
Nxe4 {[%clk 0:02:55.6]} 3. Nc3 {[%clk 0:02:43.9]} 3... Nxc3 {[%clk 0:02:54.1]}
4. dxc3 {[%clk 0:02:45.8]} 4... b6 {[%clk 0:02:51.9]} 5. Bf4 {[%clk 0:02:43.2]}
5... Bb7 {[%clk 0:02:48.5]} 6. Bc4 {[%clk 0:02:43.2]} 6... Nc6 {[%clk
0:02:45.6]} 7. O-O {[%clk 0:02:38.1]} 7... Na5 {[%clk 0:02:40.6]} 8. Bb3 {[%clk
0:02:31.1]} 8... Nxb3 {[%clk 0:02:38.2]} 9. axb3 {[%clk 0:02:33]} 9... Ba6
{[%clk 0:02:34.2]} 10. Re1 {[%clk 0:02:27.3]} 10... e6 {[%clk 0:02:31.2]} 11.
Rxa6 {[%clk 0:02:25.3]} 11... h6 {[%clk 0:02:29.6]} 12. Ra4 {[%clk 0:02:21.1]}
12... g5 {[%clk 0:02:27.7]} 13. Bg3 {[%clk 0:02:17.8]} 13... d6 {[%clk
0:02:18.8]} 14. Qd4 {[%clk 0:02:05.8]} 14... Rg8 {[%clk 0:02:14.7]} 15. Qe4
{[%clk 0:01:56.1]} 15... d5 {[%clk 0:02:11.7]} 16. Qe2 {[%clk 0:01:46.7]} 16...
Qd7 {[%clk 0:02:02.7]} 17. Ne5 {[%clk 0:01:33.7]} 17... Qc8 {[%clk 0:01:50.5]}
18. Qb5+ {[%clk 0:01:25.4]} 18... Ke7 {[%clk 0:01:46]} 19. Nc6+ {[%clk
0:01:15.4]} 19... Kf6 {[%clk 0:01:41.6]} 20. Nxa7 {[%clk 0:01:09.7]} 20... Qd8
{[%clk 0:01:34.9]} 21. Nc6 {[%clk 0:01:06.1]} 21... Qc8 {[%clk 0:01:27]} 22.
Rxa8 {[%clk 0:01:03.4]} 22... Qxa8 {[%clk 0:01:22.5]} 23. Qe2 {[%clk 0:00:56.7]}
23... Qxc6 {[%clk 0:01:16.1]} 24. Be5+ {[%clk 0:00:54.5]} 24... Kg6 {[%clk
0:01:10.1]} 25. Qd3+ {[%clk 0:00:52.6]} 25... Kh5 {[%clk 0:01:06.3]} 26. Re3
{[%clk 0:00:42.9]} 26... Qa8 {[%clk 0:01:01.6]} 27. Rh3+ {[%clk 0:00:40.7]}
27... Kg4 {[%clk 0:00:59.3]} 28. Qf3# {[%clk 0:00:33.7]} 1